bitfinex-derivatives/quotes_ETHF0:USTF0_20250103
["timestamp","ask_amount","ask_price","bid_price","bid_amount"]
[1735867918374,2.28697079,3456.3,3455.6,3.2078]
[1735867918875,40.8,3456.0,3455.6,3.2078]
[1735867919070,40.8,3456.0,3455.7,0.28967]
[1735867919378,40.8,3456.0,3455.7,0.28968]
[1735867919774,41.08965,3456.0,3455.6,3.49748]
[1735867919969,0.28967,3455.8,3455.6,3.2078]
[1735867920272,0.28966,3455.9,3455.6,3.2078]
[1735867920474,40.8,3456.0,3455.6,3.2078]
[1735867920672,0.28967,3455.8,3455.6,3.2078]
[1735867921172,0.28966,3455.9,3455.6,3.49748]
[1735867921374,0.28967,3455.9,3455.7,0.28967]
[1735867921568,0.28967,3455.9,3455.6,3.2078]
[1735867921569,0.28967,3455.8,3455.6,3.2078]
[1735867921872,0.28968,3455.7,3455.6,3.2078]
[1735867927383,2.57665079,3455.7,3455.6,3.2078]
[1735867930585,43.37665079,3455.7,3455.6,3.2078]
[1735867931085,43.37665079,3455.7,3455.2,3.2078]
[1735867931385,0.28971,3455.3,3455.2,3.2078]
[1735867933086,41.08971,3455.3,3455.2,3.2078]
[1735867933286,40.8,3455.3,3454.7,3.2078]
[1735867933487,0.28975,3454.8,3454.7,3.2078]
[1735867935279,2.28697079,3455.1,3454.7,3.2078]
[1735867935482,0.28975,3454.8,3454.7,3.2078]
[1735867935689,2.28697079,3455.1,3454.7,3.2078]
[1735867935892,0.28975,3454.8,3454.7,3.2078]
[1735867936387,2.28697079,3455.1,3454.7,3.2078]
[1735867936388,0.28973,3455.1,3454.8,0.28975]
[1735867936586,40.8,3455.3,3455.1,0.28972]
[1735867936786,40.8,3455.3,3455.1,3.2078]
[1735867937785,0.28972,3455.2,3455.1,3.2078]
[1735867938190,0.28975,3454.8,3454.7,3.2078]
[1735867940892,2.57672079,3454.8,3454.7,3.2078]
[1735867941691,43.37672079,3454.8,3454.7,3.2078]
[1735867942787,41.08975,3454.8,3454.7,3.2078]
[1735867947400,40.8,3454.8,3454.3,0.28979]
[1735867947599,41.08975,3454.8,3454.7,3.2078]
[1735867948291,40.8,3454.8,3454.7,3.2078]
[1735867948495,40.8,3454.8,3454.7,3.49756]
[1735867949904,41.08975,3454.8,3454.7,3.2078]
[1735867951199,40.8,3454.8,3454.7,3.49756]
[1735867951804,41.08975,3454.8,3454.7,3.2078]
[1735867958300,0.28976,3454.7,3454.6,3.2078]
[1735867960802,40.8,3454.8,3454.4,6.8094622]
[1735867961002,0.28978,3454.5,3454.4,6.8094622]
[1735867961907,40.8,3454.8,3454.3,6.8094622]
[1735867962218,0.28978,3454.4,3454.3,6.8094622]
[1735867962708,41.08978,3454.4,3454.3,6.8094622]
[1735867962912,0.28979,3454.3,3454.1,3.2078]
[1735867964012,0.2898,3454.3,3454.1,3.2078]
[1735867964212,0.2898,3454.3,3454.1,10.0172622]
[1735867964916,40.8,3454.4,3454.1,10.0172622]
[1735867965308,3.43804823,3455.4,3454.1,10.0172622]
[1735867965309,4.16232823,3455.4,3454.1,10.0172622]
[1735867965509,2.28697079,3455.3,3454.5,3.2078]
[1735867965709,40.8,3455.2,3454.5,3.2078]
[1735867965909,0.28976,3454.8,3454.5,3.2078]
[1735867966310,0.28976,3454.8,3454.5,3.49758]
[1735867966718,0.28976,3454.8,3454.5,3.2078]
[1735867967618,0.28977,3454.6,3454.5,3.2078]
[1735867968116,2.28697079,3455.0,3454.5,3.2078]
[1735867968314,0.28976,3454.7,3454.5,3.2078]
[1735867968820,41.08977,3454.6,3454.5,3.2078]
[1735867970315,40.8,3454.6,3454.5,3.2078]
[1735867971219,41.08977,3454.6,3454.5,16.44708407]
[1735867971422,0.28977,3454.6,3454.5,16.44708407]
[1735867972419,41.08977,3454.6,3454.5,16.44708407]
[1735867973521,41.08977,3454.6,3454.5,3.2078]
[1735867975319,41.08977,3454.6,3454.5,13.17783468]
[1735867976321,0.28978,3454.5,3454.4,6.8094622]
[1735867977525,0.28978,3454.5,3454.4,13.17916119]
[1735867978620,0.28978,3454.5,3454.4,6.36969899]
[1735867980522,0.28978,3454.5,3454.4,15.47307794]
[1735867981921,0.28978,3454.5,3454.4,6.36969899]
[1735867984328,0.28978,3454.5,3454.4,13.20815341]
[1735867985717,40.8,3454.6,3454.4,13.20815341]
[1735867985718,40.8,3454.6,3454.4,15.47307794]
[1735867985923,40.8,3454.6,3454.5,3.2078]
[1735867986734,40.8,3454.6,3454.5,22.32385813]
[1735867987133,41.08977,3454.6,3454.5,22.32385813]
[1735867987635,41.08977,3454.6,3454.5,31.44257783]
[1735867988134,40.8,3454.6,3454.5,31.44257783]
[1735867988338,40.8,3454.6,3454.5,31.73235783]
[1735867989037,40.8,3454.6,3454.5,32.86935783]
[1735867989632,40.8,3454.6,3454.5,23.75063813]
[1735867990133,0.28974,3454.9,3454.7,0.28976]
[1735867990535,40.8,3454.8,3454.7,0.28976]
[1735867990735,40.8,3454.8,3454.7,11.68629587]
[1735867991731,40.8,3454.8,3454.7,30.80231777]
[1735867992832,0.28973,3455.1,3454.7,19.1160219]
[1735867993042,0.28973,3455.1,3454.9,3.49754]
[1735867993332,0.28973,3455.0,3454.9,3.49754]
[1735867993529,0.28973,3455.0,3454.9,3.2078]
[1735867994036,40.8,3455.0,3454.9,3.49754]
[1735867994437,40.8,3455.0,3454.9,18.69244956]
[1735867994639,41.08973,3455.0,3454.9,18.69244956]
[1735867995235,40.8,3455.0,3454.9,18.69244956]
[1735867995536,40.8,3455.0,3454.9,18.98218956]
[1735867998345,40.8,3455.0,3454.9,31.49388541]
[1735867999641,40.8,3455.0,3454.9,22.38124315]
[1735868001242,40.8,3455.0,3454.9,22.09150315]
[1735868001437,40.8,3455.0,3454.9,22.38124315]
[1735868001943,40.8,3455.0,3454.9,9.8695473]
[1735868002841,40.8,3455.0,3454.9,18.97418367]
[1735868004241,0.28973,3455.1,3454.9,18.97418367]
[1735868005043,0.28973,3455.1,3455.0,13.19982139]
[1735868005345,40.8,3455.1,3455.0,13.19982139]
[1735868005642,40.8,3455.1,3455.0,13.48955139]
[1735868006645,40.8,3455.1,3455.0,6.6617373]
[1735868007040,0.28972,3455.3,3455.0,6.6617373]
[1735868007446,40.8,3455.2,3455.0,6.6617373]
[1735868007647,40.8,3455.2,3455.1,13.48785498]
[1735868008146,40.8,3455.2,3455.1,13.19812498]
[1735868008444,40.8,3455.2,3455.1,13.48785498]
[1735868009645,2.28697079,3455.9,3455.1,13.19812498]
[1735868009849,0.28969,3455.6,3455.4,3.2078]
[1735868010041,3.63701,3456.6,3455.4,5.49477079]
[1735868010042,40.8,3455.8,3455.4,5.49477079]
[1735868010345,40.8,3455.8,3455.7,0.28968]
[1735868011145,40.8,3455.8,3455.7,2.57665079]
[1735868011648,0.28963,3456.3,3456.1,0.28964]
[1735868011844,0.28963,3456.3,3456.2,3.2078]
[1735868012547,41.08963,3456.3,3456.2,3.2078]
[1735868013051,0.28963,3456.2,3456.1,6.8114979]
[1735868013745,43.08697079,3456.3,3456.0,1.136]
[1735868013944,0.28964,3456.1,3456.0,1.136]
[1735868015944,0.28964,3456.2,3456.0,1.42565]
[1735868016249,0.28964,3456.2,3456.0,1.136]
[1735868017445,0.28964,3456.1,3456.0,1.136]
[1735868017647,0.28964,3456.2,3456.0,1.136]
[1735868019054,41.08963,3456.3,3456.0,1.42565]
[1735868022155,0.28964,3456.2,3456.0,1.136]
[1735868023856,40.8,3456.3,3456.0,1.136]
[1735868024156,41.08963,3456.3,3456.0,1.42565]
[1735868025151,40.8,3456.3,3456.1,0.28964]
[1735868025758,40.8,3456.3,3456.0,1.136]
[1735868025954,40.8,3456.3,3456.2,0.28963]
[1735868026149,40.8,3456.3,3456.1,0.28964]
[1735868026356,41.08963,3456.3,3456.0,1.42565]
[1735868026655,40.8,3456.3,3456.0,1.136]
[1735868026959,40.8,3456.3,3456.1,0.28964]
[1735868029157,40.8,3456.3,3456.0,1.136]
[1735868029667,40.8,3456.3,3456.2,0.28963]
[1735868030464,40.8,3456.3,3456.2,3.49743]
[1735868030659,0.28961,3456.5,3456.2,3.49743]
[1735868030958,0.28962,3456.4,3456.2,3.49743]
[1735868031162,41.08962,3456.4,3456.2,3.49743]
[1735868031462,40.8,3456.4,3456.2,3.49743]
[1735868032456,0.28963,3456.3,3456.2,3.2078]
[1735868032859,2.57660079,3456.3,3456.2,3.2078]
[1735868034161,0.28963,3456.3,3456.2,3.2078]
[1735868037277,0.28964,3456.2,3456.0,1.136]
[1735868037876,0.28964,3456.1,3456.0,1.136]
[1735868040877,40.8,3456.4,3456.0,1.136]
[1735868041180,0.28963,3456.3,3456.0,1.42565]
[1735868041581,0.28964,3456.2,3456.1,3.2078]
[1735868042480,41.08962,3456.4,3456.1,3.49744]
[1735868042782,40.8,3456.4,3456.2,0.28963]
[1735868043182,40.8,3456.4,3456.1,3.2078]
[1735868043581,0.28963,3456.2,3456.1,3.2078]
[1735868043770,0.28963,3456.2,3456.1,4.53427195]
[1735868044982,0.28963,3456.2,3456.0,1.136]
[1735868045578,0.28964,3456.2,3456.0,1.136]
[1735868045884,0.28964,3456.2,3456.0,4.3438]
[1735868046683,0.28963,3456.3,3456.0,4.63345]
[1735868047779,0.28963,3456.3,3456.1,4.53427195]
[1735868047980,40.8,3456.4,3456.1,4.53427195]
[1735868047981,0.28963,3456.2,3456.1,4.53427195]
[1735868048686,0.28963,3456.2,3456.0,8.87807195]
[1735868048884,40.8,3456.4,3456.0,8.87807195]
[1735868048885,0.28964,3456.1,3456.0,8.87807195]
[1735868049080,0.28964,3456.1,3456.0,4.53427195]
[1735868050084,0.28967,3455.9,3455.6,8.03175195]
[1735868052288,0.28963,3456.2,3455.6,7.74207195]
[1735868052477,2.28697079,3456.3,3455.6,7.74207195]
[1735868052677,0.28968,3455.7,3455.6,7.74207195]
[1735868052887,0.28968,3455.7,3455.6,10.00920793]
[1735868053578,0.28968,3455.7,3455.6,6.80140793]
[1735868053979,2.57665079,3455.7,3455.6,4.54967776]
[1735868054280,43.37665079,3455.7,3455.6,4.54967776]
[1735868055182,0.28969,3455.5,3455.4,4.54967776]
[1735868056087,43.08697079,3455.7,3455.4,13.05639591]
[1735868056381,0.28969,3455.5,3455.4,13.05639591]
[1735868059290,0.28969,3455.5,3455.4,6.25498798]
[1735868061095,0.28969,3455.5,3455.4,10.80344067]
[1735868061897,0.28969,3455.5,3455.4,4.54845269]
[1735868062291,1.29630906,3455.5,3455.4,4.54845269]
[1735868063993,0.28969,3455.6,3455.4,4.54845269]
[1735868064295,1.29630906,3455.5,3455.4,4.54845269]
[1735868066095,0.2897,3455.4,3455.3,4.54845269]
[1735868066296,1.29631906,3455.4,3455.3,4.54845269]
[1735868066999,1.29631906,3455.4,3455.3,10.79479566]
[1735868067500,1.00661906,3455.4,3455.3,10.79479566]
[1735868067901,1.00661906,3455.4,3455.3,6.24634297]
[1735868068597,0.2897,3455.5,3455.3,6.24634297]
[1735868068801,0.2897,3455.5,3455.3,13.0477509]
[1735868069198,1.00661906,3455.4,3455.3,6.80140793]
[1735868069500,1.29631906,3455.4,3455.3,6.80140793]
[1735868070304,0.28971,3455.3,3455.1,4.54532652]
[1735868071392,0.28971,3455.3,3455.2,4.54532652]
[1735868072702,0.28971,3455.3,3455.2,7.75312652]
[1735868075606,0.28971,3455.3,3455.2,3.2078]
[1735868076801,0.28971,3455.3,3455.2,7.75225128]
[1735868077201,40.8,3455.7,3455.2,7.75225128]
[1735868077508,0.2897,3455.4,3455.2,8.04196128]
[1735868078399,0.2897,3455.4,3455.3,6.24315968]
[1735868080407,0.2897,3455.4,3455.3,4.54484109]
[1735868082912,41.80661906,3455.7,3455.3,4.54484109]
[1735868083210,0.28969,3455.6,3455.3,4.83455109]
[1735868083507,0.28969,3455.6,3455.4,4.54484109]
[1735868083698,41.80661906,3455.7,3455.4,4.54484109]
[1735868084104,0.28969,3455.6,3455.4,4.54484109]
[1735868084607,41.80661906,3455.7,3455.4,4.54484109]
[1735868084807,1.29630906,3455.5,3455.4,4.54484109]
[1735868090813,1.29630906,3455.5,3455.4,10.79378356]
[1735868091017,0.28969,3455.5,3455.4,10.79378356]
[1735868091216,0.28969,3455.6,3455.4,10.79378356]
[1735868091715,40.8,3455.7,3455.4,11.08348356]
[1735868091914,41.08968,3455.7,3455.5,6.24894247]
[1735868092917,41.08968,3455.7,3455.6,4.54975756]
[1735868093218,42.09629906,3455.7,3455.6,4.54975756]
[1735868094912,42.09629906,3455.7,3455.6,10.80275194]
[1735868095717,42.09629906,3455.7,3455.6,6.25299438]
[1735868098619,41.08968,3455.7,3455.6,6.25299438]
[1735868098828,40.8,3455.7,3455.6,6.25299438]
[1735868099022,40.8,3455.7,3455.6,13.0696713]
[1735868099324,41.08968,3455.7,3455.6,13.0696713]
[1735868100115,41.08968,3455.7,3455.6,6.25299438]
[1735868101025,40.8,3455.7,3455.6,15.34189694]
[1735868101227,40.8,3455.7,3455.6,15.63157694]
[1735868101626,40.8,3455.7,3455.6,15.34189694]
[1735868102233,40.8,3455.7,3455.6,30.12286861]
[1735868102437,41.08968,3455.7,3455.6,30.12286861]
[1735868103241,41.08968,3455.7,3455.6,4.55334277]
[1735868107340,40.8,3455.7,3455.5,4.55334277]
[1735868107543,0.28968,3455.6,3455.5,4.55334277]
[1735868108239,40.8,3455.7,3455.5,6.25474745]
[1735868109049,2.29004227,3456.4,3455.7,0.28967]
[1735868109050,0.28965,3456.0,3455.7,0.28967]
[1735868109242,0.28965,3456.0,3455.9,3.2078]
[1735868109946,41.08965,3456.0,3455.9,3.2078]
[1735868110246,40.8,3456.0,3455.9,3.2078]
[1735868110438,41.08965,3456.0,3455.9,3.2078]
[1735868110940,41.08965,3456.0,3455.9,16.28739323]
[1735868111748,41.08965,3456.0,3455.9,9.46254745]
[1735868112751,41.08965,3456.0,3455.9,3.2078]
[1735868113048,0.28966,3455.9,3455.8,4.54957014]
[1735868113850,0.28967,3455.8,3455.7,4.54957014]
[1735868114949,0.28967,3455.8,3455.7,6.24952096]
[1735868115850,0.28967,3455.8,3455.7,13.07436674]
[1735868118050,0.28967,3455.8,3455.7,4.55010696]
[1735868121544,44.0078,3456.0,3455.7,13.07349572]
[1735868121748,0.28966,3455.9,3455.7,13.07349572]
[1735868121944,0.28967,3455.8,3455.7,13.07349572]
[1735868122148,0.28967,3455.8,3455.7,9.09979437]
[1735868122539,0.28966,3455.9,3455.7,9.09979437]
[1735868123152,0.28966,3455.9,3455.8,4.54784811]
[1735868126748,0.28966,3455.9,3455.7,4.54784811]
[1735868128248,40.8,3456.0,3455.7,4.54784811]
[1735868128442,0.28967,3455.8,3455.7,4.54784811]
[1735868130858,3.49747,3455.8,3455.7,6.24586829]
[1735868131050,3.07964226,3455.8,3455.7,6.24586829]
[1735868131450,2.78997226,3455.8,3455.4,10.23479437]
[1735868131656,0.28969,3455.5,3455.4,9.09979437]
[1735868132657,0.28969,3455.5,3455.4,6.23684337]
[1735868133847,1.00626702,3455.6,3455.4,4.54806701]
[1735868134050,0.28969,3455.5,3455.4,4.54806701]
[1735868135058,1.00626702,3455.6,3455.3,4.54806701]
[1735868135359,1.29596702,3455.4,3455.3,4.54806701]
[1735868136767,4.50376702,3455.4,3455.3,4.54806701]
[1735868137055,4.50376702,3455.4,3455.3,4.25108725]
[1735868137259,9.50376702,3455.4,3455.3,4.25108725]
[1735868137459,0.28973,3455.1,3455.0,6.82210052]
[1735868138465,0.28974,3454.9,3454.8,8.340274]
[1735868138657,4.21406702,3454.9,3454.5,6.8205172]
[1735868139159,1.29603702,3454.6,3454.5,6.22131822]
[1735868139660,0.28983,3453.9,3453.6,1.00626702]
[1735868140253,0.28983,3453.9,3453.4,12.4961282]
[1735868140558,0.28983,3453.9,3453.5,0.28986]
[1735868140761,0.28983,3453.9,3453.4,0.28986]
[1735868141059,5.49972284,3454.3,3453.3,4.3428]
[1735868141258,0.28984,3453.7,3453.3,4.63268]
[1735868141560,0.28984,3453.7,3453.3,4.3428]
[1735868142355,0.28984,3453.8,3453.3,4.63268]
[1735868142961,0.28984,3453.7,3453.3,4.3428]
[1735868143460,0.28984,3453.7,3453.3,4.63268]
[1735868143657,0.28984,3453.7,3453.3,4.3428]
[1735868143856,5.49972284,3454.3,3453.3,4.63268]
[1735868144251,0.28985,3453.7,3453.3,4.63268]
[1735868144457,0.28985,3453.7,3453.3,4.3428]
[1735868145860,5.49972284,3454.3,3453.3,4.3428]
[1735868146062,0.28985,3453.6,3453.3,4.3428]
[1735868147964,0.28985,3453.6,3453.3,3.2078]
[1735868148360,0.28987,3453.5,3453.3,3.2078]
[1735868150065,3.2078,3453.9,3453.3,3.49768]
[1735868150066,0.28986,3453.6,3453.3,3.49768]
[1735868150265,0.28986,3453.6,3453.3,3.2078]
[1735868150563,3.2078,3453.9,3453.3,3.2078]
[1735868150564,0.28984,3453.8,3453.3,3.2078]
[1735868150764,3.2078,3453.9,3453.3,3.2078]
[1735868150967,0.28986,3453.5,3453.3,3.2078]
[1735868151168,0.28985,3453.6,3453.3,3.2078]
[1735868151367,0.28985,3453.6,3453.3,3.49767]
[1735868152169,3.2078,3453.9,3453.3,3.49767]
[1735868152170,0.28984,3453.8,3453.5,0.28986]
[1735868152570,0.28984,3453.7,3453.4,0.28987]
[1735868152765,46.29972284,3454.3,3453.5,0.28986]
[1735868152766,0.28984,3453.8,3453.5,0.28986]
[1735868153171,0.28984,3453.8,3453.3,3.2078]
[1735868153365,0.28983,3453.9,3453.6,0.28985]
[1735868153774,0.28982,3454.0,3453.6,0.28985]
[1735868154471,46.29972284,3454.3,3453.3,3.2078]
[1735868154675,0.28982,3454.0,3453.6,0.28985]
[1735868155267,46.29972284,3454.3,3453.7,0.28984]
[1735868155468,0.28981,3454.1,3453.7,0.28984]
[1735868155764,0.28983,3454.0,3453.5,0.28985]
[1735868156474,0.28983,3453.9,3453.5,0.28985]
[1735868156674,46.29972284,3454.3,3453.3,5.49972284]
[1735868156877,0.28982,3454.0,3453.6,0.28985]
[1735868157668,0.28982,3454.0,3453.3,5.49972284]
[1735868157669,46.29972284,3454.3,3453.3,5.49972284]
[1735868157874,0.28982,3454.0,3453.6,0.28985]
[1735868158977,44.0078,3454.3,3453.3,5.49972284]
[1735868159174,0.2898,3454.2,3453.9,0.28982]
[1735868159373,40.8,3454.3,3453.9,0.28982]
[1735868159882,40.8,3454.3,3453.8,0.28983]
[1735868160077,0.28981,3454.2,3453.8,0.28983]
[1735868160267,0.28981,3454.1,3453.7,3.49764]
[1735868160580,0.28982,3454.0,3453.7,3.49764]
[1735868160773,0.28982,3454.0,3453.7,3.2078]
[1735868161269,40.8,3454.3,3453.7,3.2078]
[1735868161270,43.09192284,3454.3,3453.7,3.2078]
[1735868161475,0.28984,3453.8,3453.7,3.2078]
[1735868162078,3.2078,3454.1,3453.2,3.2078]
[1735868162281,3.2078,3454.1,3453.3,1.136]
[1735868162282,0.28987,3453.4,3453.3,1.136]
[1735868162980,41.08987,3453.4,3453.3,1.136]
[1735868164177,40.8,3453.4,3453.2,3.2078]
[1735868164377,0.28988,3453.3,3453.2,3.2078]
[1735868166286,1.29741943,3453.3,3453.2,3.2078]
[1735868167990,1.00753943,3453.3,3453.2,3.2078]
[1735868168196,0.28988,3453.3,3453.2,3.2078]
[1735868168492,40.8,3453.4,3453.2,3.2078]
[1735868168991,0.28988,3453.3,3453.2,3.2078]
[1735868169982,41.08988,3453.3,3453.2,3.2078]
[1735868170186,3.2078,3453.7,3453.2,3.2078]
[1735868170391,0.28987,3453.4,3453.2,3.2078]
[1735868172297,0.28988,3453.3,3453.2,3.2078]
[1735868176699,0.28987,3453.4,3453.2,3.2078]
[1735868176896,41.08986,3453.6,3453.2,3.49768]
[1735868177301,40.8,3453.6,3453.2,3.2078]
[1735868177602,0.28986,3453.5,3453.2,3.2078]
[1735868178504,40.8,3453.6,3453.2,3.2078]
[1735868178698,0.28988,3453.3,3453.2,3.2078]
[1735868178894,0.28987,3453.4,3453.2,3.2078]
[1735868181401,40.8,3453.6,3453.2,3.2078]
[1735868181601,0.28987,3453.5,3453.2,3.2078]
[1735868181794,40.8,3453.6,3453.2,3.2078]
[1735868182399,41.08986,3453.6,3453.2,3.49768]
[1735868182597,0.28986,3453.5,3453.2,3.49768]
[1735868182998,40.8,3453.6,3453.2,3.2078]
[1735868183199,0.28987,3453.4,3453.2,3.2078]
[1735868183697,0.28987,3453.4,3453.3,6.0229465]
[1735868184394,0.28987,3453.5,3453.3,6.0229465]
[1735868185207,0.28987,3453.5,3453.4,6.0229465]
[1735868186304,40.8,3453.6,3453.1,12.54344961]
[1735868186501,0.28987,3453.4,3453.1,12.54344961]
[1735868187300,0.28987,3453.4,3453.2,15.07329469]
[1735868188209,0.28986,3453.5,3453.2,15.07329469]
[1735868188505,40.8,3453.6,3453.3,6.02753508]
[1735868188708,0.28987,3453.4,3453.3,6.02753508]
[1735868189309,40.8,3453.6,3453.3,6.02753508]
[1735868189912,41.08986,3453.6,3453.3,6.31741508]
[1735868190408,0.28986,3453.5,3453.3,6.02753508]
[1735868190610,40.8,3453.6,3453.3,6.02753508]
[1735868190808,0.28986,3453.5,3453.3,6.02753508]
[1735868191008,0.28986,3453.5,3453.4,6.02753508]
[1735868192509,1.29746433,3453.5,3453.4,6.02753508]
[1735868193810,1.00760433,3453.5,3453.1,3.2078]
[1735868194010,0.28989,3453.2,3453.1,3.2078]
[1735868194714,0.28989,3453.2,3453.1,9.23745193]
[1735868196408,40.8,3453.6,3453.1,9.23745193]
[1735868196608,0.28989,3453.3,3453.1,9.23745193]
[1735868197012,0.28989,3453.2,3453.1,9.23745193]
[1735868197416,0.28989,3453.2,3453.1,3.2078]
[1735868198622,0.28989,3453.2,3453.1,9.23514029]
[1735868204412,2.29281497,3453.5,3453.1,9.23514029]
[1735868204613,0.28989,3453.2,3453.1,9.23514029]
[1735868205425,2.29281497,3453.5,3453.1,9.23514029]
[1735868205728,0.28988,3453.3,3453.1,9.23514029]
[1735868206026,0.28989,3453.2,3453.1,12.25355961]
[1735868207217,0.28989,3453.2,3453.1,9.04575961]
[1735868207419,2.58270497,3453.2,3453.1,15.06834861]
[1735868207928,43.38270497,3453.2,3453.1,15.06834861]
[1735868208623,43.38270497,3453.2,3453.1,12.85919702]
[1735868210617,48.09281497,3453.2,3452.9,9.04575961]
[1735868210820,3.4977,3453.0,3452.9,6.47142549]
[1735868211126,3.4977,3453.0,3452.9,6.46432549]
[1735868211327,3.4977,3453.0,3452.7,11.3611282]
[1735868211328,0.28992,3452.8,3452.7,11.3611282]
[1735868211627,2.58273497,3452.8,3452.7,11.3611282]
[1735868211819,7.58273497,3452.8,3452.7,11.3611282]
[1735868212226,48.38273497,3452.8,3452.7,11.3611282]
[1735868212930,0.29,3451.9,3451.6,14.4409282]
[1735868213125,3.2078,3452.3,3451.6,14.4409282]
[1735868213427,0.28999,3452.1,3451.6,14.7309482]
[1735868213628,40.8,3451.8,3451.7,0.29001]
[1735868214225,2.2771272,3452.1,3451.6,3.2078]
[1735868214535,2.2771272,3452.1,3451.5,2.29281497]
[1735868214536,0.6969272,3452.1,3452.0,3.49779]
[1735868215226,3.4156908,3452.6,3452.0,3.2078]
[1735868215424,3.4156908,3452.6,3452.5,0.28994]
[1735868216125,3.4156908,3452.6,3452.4,3.49775]
[1735868216732,0.28994,3452.6,3452.4,3.2078]
[1735868217434,0.28994,3452.6,3452.4,3.49775]
[1735868217625,0.28994,3452.6,3452.4,3.2078]
[1735868218232,9.64105577,3453.1,3452.4,3.2078]
[1735868218532,9.64105577,3453.1,3452.0,0.28998]
[1735868218533,0.28997,3452.2,3452.0,0.28998]
[1735868218733,0.28998,3452.2,3451.9,0.28999]
[1735868218932,0.28998,3452.2,3451.6,0.29002]
[1735868219228,40.8,3452.1,3451.5,3.2078]
[1735868219835,0.29002,3451.7,3451.5,3.49783]
[1735868220430,40.8,3452.1,3451.5,3.2078]
[1735868220630,0.29002,3451.6,3451.5,3.2078]
[1735868221046,0.29002,3451.6,3451.4,1.42603]
[1735868221047,0.29002,3451.6,3451.4,0.29003]
[1735868221334,3.2078,3451.9,3451.3,0.29004]
[1735868221635,0.29002,3451.6,3451.4,0.29004]
[1735868222230,3.2078,3451.9,3451.2,1.136]
[1735868222537,0.29005,3451.3,3451.1,3.49786]
[1735868223232,5.50061497,3451.9,3451.1,3.2078]
[1735868223436,0.29005,3451.3,3451.1,3.2078]
[1735868223634,6.22561497,3451.9,3451.1,3.2078]
[1735868223635,5.50061497,3451.9,3451.1,3.2078]
[1735868223834,0.29005,3451.2,3451.1,3.2078]
[1735868224738,5.50061497,3451.9,3451.1,3.2078]
[1735868224934,0.29,3451.8,3451.6,0.29002]
[1735868225132,40.8,3452.1,3451.5,3.2078]
[1735868225334,0.29,3451.8,3451.6,0.29002]
[1735868225533,2.29281497,3452.2,3451.5,3.2078]
[1735868225741,0.29002,3451.7,3451.5,3.49783]
[1735868225942,0.29002,3451.7,3451.5,3.49782]
[1735868228443,40.8,3452.1,3451.5,3.2078]
[1735868228639,5.50061497,3451.9,3451.3,1.136]
[1735868228941,5.50061497,3451.9,3451.3,0.29004]
[1735868228942,0.29003,3451.5,3451.3,0.29004]
[1735868229346,5.50061497,3451.9,3451.1,1.136]
[1735868229347,3.2078,3451.9,3451.1,1.136]
[1735868229543,0.28999,3451.9,3451.6,0.29002]
[1735868229744,0.28999,3451.9,3451.7,0.29001]
[1735868230342,41.08998,3452.1,3451.9,0.28999]
[1735868230736,0.28999,3452.0,3451.8,0.29]
[1735868230938,41.08998,3452.1,3451.8,0.29]
[1735868231136,41.08998,3452.1,3451.9,0.28999]
[1735868231332,40.8,3452.1,3451.9,0.28999]
[1735868232342,41.08998,3452.1,3451.8,0.29]
[1735868232843,41.08998,3452.1,3451.9,0.28999]
[1735868232844,40.8,3452.1,3451.9,0.28999]
[1735868233045,40.8,3452.1,3452.0,0.28999]
[1735868236847,40.8,3452.1,3451.9,0.28999]
[1735868237051,41.08998,3452.1,3451.9,0.28999]
[1735868237246,40.8,3452.1,3451.9,0.28999]
[1735868237451,0.28997,3452.2,3452.0,0.28998]
[1735868237652,0.28998,3452.1,3451.9,0.28999]
[1735868237951,40.8,3452.4,3451.8,0.29]
[1735868238245,2.29281497,3452.2,3451.8,0.29]
[1735868238449,2.29281497,3452.2,3451.5,3.2078]
[1735868238651,0.28998,3452.1,3451.7,0.29001]
[1735868238855,2.29281497,3452.2,3451.7,0.29001]
[1735868239153,0.28999,3452.0,3451.7,0.29001]
[1735868239344,2.29281497,3452.2,3451.5,3.2078]
[1735868239654,0.28999,3451.9,3451.8,0.29]
[1735868239851,0.28999,3452.1,3451.9,0.28999]
[1735868240041,2.29281497,3452.2,3451.9,0.28999]
[1735868240245,2.29281497,3452.2,3451.5,3.2078]
[1735868240446,0.29,3451.8,3451.6,0.29002]
[1735868240850,2.29281497,3452.2,3451.5,3.2078]
[1735868241055,0.29002,3451.6,3451.5,3.2078]
[1735868241650,41.09002,3451.6,3451.5,3.2078]
[1735868244451,40.8,3451.6,3451.5,3.49783]
[1735868245155,40.8,3451.6,3451.5,3.2078]
[1735868245356,41.09002,3451.6,3451.5,3.49783]
[1735868245658,40.8,3451.6,3451.5,3.49783]
[1735868249755,41.09002,3451.6,3451.5,3.49783]
[1735868250156,40.8,3451.6,3451.5,3.49783]
[1735868250557,41.09002,3451.6,3451.5,3.2078]
[1735868252666,41.09002,3451.6,3451.5,3.2078]
[1735868254457,40.8,3451.6,3451.5,3.49783]
[1735868257364,3.4156908,3452.0,3451.5,3.2078]
[1735868257565,3.7056808,3452.0,3451.8,0.29]
[1735868257767,3.4156908,3452.0,3451.9,0.28999]
[1735868257968,44.2156908,3452.0,3451.9,0.28999]
[1735868258662,40.8,3452.0,3451.9,5.76925801]
[1735868260164,3.7056308,3452.6,3452.0,0.28999]
[1735868260466,0.28999,3452.0,3451.9,5.47926801]
[1735868260655,44.29779,3452.0,3451.9,5.47926801]
[1735868261264,0.28999,3451.9,3451.6,4.84134688]
[1735868261461,0.29001,3451.8,3451.6,4.84134688]
[1735868261666,44.0078,3452.0,3451.6,4.84134688]
[1735868261858,0.29001,3451.7,3451.6,4.55132688]